Cogmind - Beta 12 @@@ ROGUE MODE // 2023.10.25 @ 14:10:51 Player: FrostySpirit Result: Destroyed by Fusion Bomb Trap Performance ------------- Evolutions (1) 500 Regions Visited (5) 1000 Robots Destroyed (39) 195 Value Destroyed (1294) 1294 Prototype IDs (5) 100 Alien Tech Used (0) 0 Bonus (200) 200 TOTAL SCORE: 3289 Bonus ------- Entered Garrisons 200 Cogmind --------- Core Integrity 0/400 Matter 295/300 Energy 276/280 System Corruption 1% Temperature Cool (2) Movement Treading (160) Location -9/Garrison Parts ------- > --- POWER (1) -------- Cooled Ion Engine > --- PROPULSION (2) --- Light Treads > --- UTILITY (4) ------ Heat Sink Small Storage Unit Terrain Scan Processor > --- WEAPON (2) ------- Advanced Beam Cannon Light Assault Rifle > --- INVENTORY (8) ---- Light Ion Engine Heavy Ion Engine Aluminum Leg Relay Coupler [Swarmer] (38) Relay Coupler [Grunt] (29) Relay Coupler [Hunter] (16) Small Laser Peak State ------------ > --- POWER ------------ Light Ion Engine > --- PROPULSION ------- Improved Aluminum Leg Improved Flight Unit > --- UTILITY ---------- Heat Sink Small Storage Unit Small Storage Unit Power Shielding > --- WEAPON ----------- Improved Medium Laser Improved Assault Rifle > --- INVENTORY -------- Light Treads Light Treads Aluminum Leg Aluminum Leg Light Armor Plating Small Laser Advanced Beam Cannon Light Assault Rifle [Rating: 17] Favorites ----------- Power Light Ion Engine Engine Light Ion Engine Propulsion Aluminum Leg Treads Light Treads Leg Aluminum Leg Flight Unit Improved Flight Unit Utility Small Storage Unit Device Heat Sink Storage Small Storage Unit Processor Terrain Scan Processor Protection Power Shielding Weapon Improved Assault Rifle Energy Gun Improved Medium Laser Energy Cannon Advanced Beam Cannon Ballistic Gun Improved Assault Rifle Ballistic Cannon Improved Light Cannon Build | -11 -10 -10 -9 -9 -9 ------- Run | Jun Mat Min Mat Sto Gar Slots Evolved 2 | . . . 2 . . Power . | . . . . . . Propulsion . | . . . . . . Utility 2 | . . . 2 . . Weapon . | . . . . . . Parts Attached 37 | 7 1 2 3 23 1 Power 6 | 1 . 1 . 4 . Engine 6 | 1 . 1 . 4 . Core . | . . . . . . Reactor . | . . . . . . Propulsion 12 | 2 . . 1 9 . Treads 2 | . . . . 2 . Leg 9 | 2 . . 1 6 . Wheel . | . . . . . . Hover . | . . . . . . Flight 1 | . . . . 1 . Utility 7 | 2 . . 1 4 . Device 2 | . . . 1 1 . Storage 2 | 2 . . . . . Processor 1 | . . . . 1 . Hackware . | . . . . . . Protection 2 | . . . . 2 . Artifact . | . . . . . . Weapon 12 | 2 1 1 1 6 1 Energy Gun 6 | 2 1 . . 3 . Energy Cannon 1 | . . . . 1 . Ballistic Gun 4 | . . 1 . 2 1 Ballistic Cannon 1 | . . . 1 . . Launcher . | . . . . . . Special Weapon . | . . . . . . Impact Weapon . | . . . . . . Slashing Weapon . | . . . . . . Piercing Weapon . | . . . . . . Special Melee Weapon . | . . . . . . Unidentified Prototypes 5 | . . . . 5 . Parts Lost 18 | . . 2 1 12 3 Power 3 | . . 1 . 2 . Propulsion 6 | . . . 1 4 1 Utility 4 | . . . . 3 1 Weapon 5 | . . 1 . 3 1 Highest Loss Streak 5 | . . 2 1 5 2 To Critical Strikes . | . . . . . . Average Slot Usage (%) 87 | . 98 94 85 87 81 Engine 9 | . 14 8 11 9 11 Treads 6 | . . . . 3 22 Leg 12 | . 28 28 19 12 . Device 9 | . . . 11 10 11 Storage 21 | . 28 28 22 22 12 Processor 2 | . . . . 1 11 Protection 3 | . . . . 6 . Energy Gun 7 | . 26 20 2 6 . Energy Cannon 3 | . . . . 2 11 Ballistic Gun 8 | . . 7 11 11 2 Ballistic Cannon 1 | . . . 8 1 . Naked Turns . | . . . . . . Heaviest Build 26 | 16 17 17 19 26 26 Greatest Support 40 | 20 20 20 20 40 40 Greatest Overweight (x) 1 | 1 . . 1 1 . Average Overweight (x) . | . . . . . . Largest Inventory Capacity 8 | 8 8 8 8 8 8 Average Capacity 7 | 7 8 8 8 8 8 Most Carried 8 | 4 5 7 5 8 8 Average Carried 5 | 1 4 5 4 6 6 Final Capacity 8 | 8 8 8 8 8 8 Final Carried 7 | 4 5 5 5 5 7 Class Distribution -------------------- 88% | Mutant 11% | Scavenger-Mutant Dominant Class ---------------- Mutant | -10/Materials Mutant | -10/Mines Mutant | -9/Materials Mutant | -9/Storage Mutant | -9/Garrison Resources | -11 -10 -10 -9 -9 -9 ----------- Run | Jun Mat Min Mat Sto Gar Matter Collected 742 | 246 . 52 . 419 25 Remotely . | . . . . . . Salvage Created 1361 | 57 . 230 78 826 170 Parts 94 | 2 . 11 6 57 18 Haulers Intercepted . | . . . . . . Recyclers Shooed 1 | . . 1 . . . Parts Field Recycled . | . . . . . . Retrieved Matter . | . . . . . . Parts Self-Destructed . | . . . . . . Prevented . | . . . . . . Kills | -11 -10 -10 -9 -9 -9 ------- Run | Jun Mat Min Mat Sto Gar Combat Hostiles Destroyed 34 | . . 5 2 21 6 Guns 20 | . . 5 1 14 . Cannons 14 | . . . 1 7 6 Classes Destroyed 6 | 1 . 2 1 2 . Worker 2 | . . . . 2 . Recycler 2 | 1 . 1 . . . Watcher 1 | . . . . 1 . Swarmer 9 | . . 3 . 3 3 Grunt 17 | . . 2 1 11 3 Sentry 8 | . . . 1 7 . Best Kill Streak 6 | 1 . 3 2 6 6 Combat Bots Only 6 | . . 3 2 6 6 Max Kills in Single Turn 1 | 1 . 1 1 1 1 Gunslinging . | . . . . . . Exploded . | . . . . . . Melee . | . . . . . . Uniques/NPCs Destroyed . | . . . . . . Combat | -11 -10 -10 -9 -9 -9 -------- Run | Jun Mat Min Mat Sto Gar Damage Taken 2540 | . . 387 147 1531 475 Core 491 | . . 62 42 304 83 Absorbed by Shields . | . . . . . . Redirected to Shielding 17 | . . . . 17 . Core Remaining (%) 87 | 100 . 75 . . . Volleys Fired 109 | 4 . 23 8 64 10 Largest 2 | 1 . 2 2 2 2 Hottest 91 | 40 . 90 59 91 91 Shots Fired 193 | 4 . 44 16 117 12 Gun 155 | 4 . 44 8 97 2 Cannon 38 | . . . 8 20 10 Launcher . | . . . . . . Special . | . . . . . . Kinetic 99 | . . 8 16 73 2 Thermal 81 | 4 . 23 . 44 10 Explosive . | . . . . . . Electromagnetic 13 | . . 13 . . . Robot Hit Streak 14 | 4 . 7 2 14 6 Robot Miss Streak 6 | . . 6 4 3 2 Penetration Max . | . . . . . . Secondary Targets 1 | . . . . 1 . Max Gunslinging Chain 1 | . . . . 1 . Shots Hit Robots 119 | 4 . 23 6 78 8 Core Hits 57 | 2 . 10 3 35 7 Critical Kills 1 | . . . . 1 . Critical Parts Destroyed . | . . . . . . Critical Strikes 3 | . . . . 3 . Burn 2 | . . . . 2 . Destroy 1 | . . . . 1 . Melee Attacks . | . . . . . . Impact . | . . . . . . Slashing . | . . . . . . Piercing . | . . . . . . Sneak Attacks . | . . . . . . Combat Hostiles . | . . . . . . Follow-up Attacks . | . . . . . . Damage Inflicted 1820 | 41 . 263 89 1273 154 Guns 1318 | 41 . 263 24 978 12 Cannons 502 | . . . 65 295 142 Explosions . | . . . . . . Melee . | . . . . . . Ramming . | . . . . . . Kinetic 891 | . . 42 89 748 12 Thermal 844 | 41 . 136 . 525 142 Explosive . | . . . . . . Electromagnetic 85 | . . 85 . . . Impact . | . . . . . . Slashing . | . . . . . . Piercing . | . . . . . . Highest Corruption 1 | . . . . . 1 Average Corruption 1 | . . . . . 1 Corruption Purged . | . . . . . . Corruption Blocked . | . . . . . . Effects 1 | . . . . . 1 Data Loss (minor) 1 | . . . . . 1 Overload Shots . | . . . . . . Overflow Damage . | . . . . . . Projectiles . | . . . . . . Explosions . | . . . . . . Melee . | . . . . . . Knockbacks 2 | . . . . 2 . Impact . | . . . . . . Kinetic 1 | . . . . 1 . Secondary 1 | . . . . 1 . Self-Inflicted Damage . | . . . . . . Shots . | . . . . . . Rammed . | . . . . . . Targets Rammed . | . . . . . . Kicked . | . . . . . . Crushed . | . . . . . . Highest Temperature 180 | . . 180 23 139 31 Average Temperature 74 | . . 108 7 45 20 Received Heat Transfer 882 | . . 156 60 588 78 Siege Activations . | . . . . . . Robots Corrupted . | . . . . . . Combat Hostiles . | . . . . . . Parts Fried . | . . . . . . Impact Corruptions . | . . . . . . Robots Melted . | . . . . . . Combat Hostiles . | . . . . . . Parts Melted 4 | . . 1 . 3 . Heat Transferred 2061 | 100 . 407 . 1295 259 Parts Sabotaged . | . . . . . . Parts Stolen . | . . . . . . Parts Stripped . | . . . . . . Power Chain Reactions . | . . . . . . Missiles Intercepted . | . . . . . . Alert | -11 -10 -10 -9 -9 -9 ------- Run | Jun Mat Min Mat Sto Gar Peak Influence 348 | 5 3 105 95 343 348 Initial 198 | . 3 . 40 39 198 Average 173 | 3 3 80 50 197 319 Maximum Alert Level 1 | . . . . 1 1 Low Security (%) 60 | 100 100 100 100 54 17 Level 1 39 | . . . . 45 83 Level 2 . | . . . . . . Level 3 . | . . . . . . Level 4 . | . . . . . . Level 5 . | . . . . . . High Security . | . . . . . . Max Security . | . . . . . . Squads Dispatched 2 | . . . . 2 . Investigation 1 | . . . . 1 . Extermination . | . . . . . . Reinforcement 1 | . . . . 1 . Assault . | . . . . . . Garrison . | . . . . . . Intercept . | . . . . . . Searches Triggered . | . . . . . . Construction Impeded . | . . . . . . Haulers Reinforced . | . . . . . . Active Scanning Responses . | . . . . . . Cargo Convoy Interrupts . | . . . . . . Stealth | -11 -10 -10 -9 -9 -9 --------- Run | Jun Mat Min Mat Sto Gar Distress Signals 2 | . . . . 2 . Communications Jammed . | . . . . . . Distress Signals . | . . . . . . Times Spotted 40 | . . 5 2 27 6 Peak Tracking Total 7 | . . 2 2 7 6 Tactical Retreats 1 | . . . . 1 . Traps | -11 -10 -10 -9 -9 -9 ------- Run | Jun Mat Min Mat Sto Gar Traps Triggered 5 | . . . . 2 3 Indirectly . | . . . . . . Trap Hack Attempts . | . . . . . . Triggered . | . . . . . . Disarmed . | . . . . . . Reprogrammed . | . . . . . . Reused . | . . . . . . Traps Extracted . | . . . . . . Installed . | . . . . . . Triggered . | . . . . . . Machines | -11 -10 -10 -9 -9 -9 ---------- Run | Jun Mat Min Mat Sto Gar Machines Disabled 2 | . . . . 1 1 Max in Single Turn 1 | . . . . 1 1 Garrison Relay 1 | . . . . . 1 Machines Repaired . | . . . . . . Machines Sabotaged . | . . . . . . Overloaded Fab Kills . | . . . . . . Hacking | -11 -10 -10 -9 -9 -9 --------- Run | Jun Mat Min Mat Sto Gar Machines Accessed 3 | . . . . 3 . Terminals 2 | . . . . 2 . Fabricators . | . . . . . . Repair Stations . | . . . . . . Recycling Units . | . . . . . . Scanalyzers . | . . . . . . Garrison Access 1 | . . . . 1 . Total Hacks 7 | . . . . 7 . Successful 5 | . . . . 5 . Failed 2 | . . . . 2 . Catastrophic . | . . . . . . Database Lockouts . | . . . . . . Manual 1 | . . . . 1 . Terminals 5 | . . . . 5 . Fabricators . | . . . . . . Repair Stations . | . . . . . . Recycling Units . | . . . . . . Scanalyzers . | . . . . . . Garrison Access 2 | . . . . 2 . Terminal Hacks 4 | . . . . 4 . Record 2 | . . . . 2 . Open Door 1 | . . . . 1 . Zone Layout 1 | . . . . 1 . Fabricator Hacks . | . . . . . . Repair Station Hacks . | . . . . . . Recycling Unit Hacks . | . . . . . . Scanalyzer . | . . . . . . Garrison Access Hacks 1 | . . . . 1 . Unlock Access 1 | . . . . 1 . Unauthorized Hacks . | . . . . . . Terminals . | . . . . . . Fabricators . | . . . . . . Repair Stations . | . . . . . . Recycling Units . | . . . . . . Scanalyzers . | . . . . . . Garrison Access . | . . . . . . Data Cores Recovered . | . . . . . . Used . | . . . . . . Hacking Detections 2 | . . . . 2 . Full Trace Events 1 | . . . . 1 . Feedback Events . | . . . . . . Feedback Blocked . | . . . . . . Robot Schematics Acquired . | . . . . . . Robots Built . | . . . . . . Authchips . | . . . . . . Time . | . . . . . . Total Robot Build Rating . | . . . . . . Part Schematics Acquired . | . . . . . . Parts Built . | . . . . . . Authchips . | . . . . . . Time . | . . . . . . Total Part Build Rating . | . . . . . . Parts Repaired . | . . . . . . Time . | . . . . . . Parts Recycled . | . . . . . . Recycled Matter . | . . . . . . Retrieved Matter . | . . . . . . Retrieved Components . | . . . . . . Parts Scanalyzed . | . . . . . . Part Schematics Acquired . | . . . . . . Parts Damaged . | . . . . . . Bothacking | -11 -10 -10 -9 -9 -9 ------------ Run | Jun Mat Min Mat Sto Gar Used RIF Installer . | . . . . . . Robots Hacked . | . . . . . . Non-combat . | . . . . . . Combat . | . . . . . . Robot Hacks Applied . | . . . . . . Relay Couplers Released 5 | . . . . . 5 Machine Destruction 5 | . . . . . 5 Fabnet Peak Effective % . | . . . . . . Robots Rewired . | . . . . . . Allies Hacked . | . . . . . . Hacks Repelled . | . . . . . . Allies | -11 -10 -10 -9 -9 -9 -------- Run | Jun Mat Min Mat Sto Gar Total Allies . | . . . . . . Largest Group . | . . . . . . Highest-Rated Group . | . . . . . . Highest-Rated Ally . | . . . . . . Total Orders . | . . . . . . Ally Attacks . | . . . . . . Total Damage . | . . . . . . Kills . | . . . . . . Allies Corrupted . | . . . . . . Allies Melted . | . . . . . . Intel | -11 -10 -10 -9 -9 -9 ------- Run | Jun Mat Min Mat Sto Gar Robot Analysis Total . | . . . . . . Derelict Logs Recovered . | . . . . . . Drone Launches . | . . . . . . Drone Recoveries . | . . . . . . Exploration | -11 -10 -10 -9 -9 -9 ------------- Run | Jun Mat Min Mat Sto Gar Turns Passed 1850 | 129 88 149 142 1042 300 Spaces Moved 1008 | 92 72 67 93 513 171 Core 8 | 8 . . . . . Treads 276 | . . . . 105 171 Legs 724 | 84 72 67 93 408 . Wheels . | . . . . . . Hover . | . . . . . . Flight . | . . . . . . Fastest Speed 50 | 50 120 120 120 120 160 Average Speed 147 | 116 120 120 124 161 160 Slowest Speed 190 | 120 120 120 190 190 160 Overloaded Moves . | . . . . . . Propulsion Burnouts . | . . . . . . Robots Hopped . | . . . . . . Cave-ins Triggered . | . . . . . . Exploration Rate (%) 22 | 4 18 17 10 56 29 Regions Visited 5 Branch Regions 2 Pre-discovered Areas . | . . . . . . Known Exits Taken 1 | . . . . 1 . Unknown Exits Taken 4 | 1 1 1 1 . . Scrap Searched 1 | . . 1 . . . Spaces Dug . | . . . . . . Terrain Destroyed . | . . . . . . Melee . | . . . . . . Projectile . | . . . . . . AOE . | . . . . . . Terrain Rammed . | . . . . . . Walls Destroyed . | . . . . . . Machines Disabled . | . . . . . . Actions | -11 -10 -10 -9 -9 -9 --------- Run | Jun Mat Min Mat Sto Gar Total 1175 | 106 73 93 104 611 188 Wait 1 | . . . . 1 . Move 1003 | 91 71 66 92 512 171 Hop . | . . . . . . Pick Up 13 | 4 . 2 . 3 4 Fast Attach 22 | 7 1 . 2 11 1 Attach 12 | . . 2 1 8 1 Detach 5 | . 1 . 1 3 . Swap 4 | . . . . 4 . Drop 6 | . . . . 5 1 Fire 109 | 4 . 23 8 64 10 Melee . | . . . . . . Ram . | . . . . . . Kick . | . . . . . . Crush . | . . . . . . Escape Stasis . | . . . . . . Rewire . | . . . . . . Trap . | . . . . . . Miscellaneous . | . . . . . . Route ------- -11/Junkyard -10/Materials -10/Mines -9/Materials -9/Storage -9/Garrison History --------- Turn | Location | Event 10 | -11/Junkyard | Discovered new exit (range 15) 130 | -11/Junkyard | Entered Materials 210 | -10/Materials | Discovered new exit (range 4) 218 | -10/Materials | Entered Mines 310 | -10/Mines | Build established: Mutant 345 | -10/Mines | Assembled infested the area 363 | -10/Mines | Discovered new exit (range 3) 367 | -10/Mines | Entered Materials 367 | -9/Materials | Evolved 2 slots: Utility x2 462 | -9/Materials | Discovered new exit (range 15) 509 | -9/Materials | Entered Storage 1085 | -9/Storage | Core integrity fell below 50% 1337 | -9/Storage | Core integrity fell below 20% 1387 | -9/Storage | Lost 5 parts (1p2n1u1w) 1546 | -9/Storage | Identified exit to Garrison 1551 | -9/Storage | Entered Garrison 1598 | -9/Garrison | Triggered checkpoint 1602 | -9/Garrison | Garrison Relay disabled 1851 | -9/Garrison | Destroyed by Fusion Bomb Trap Last Messages --------------- 01617_ S-10 Pest destroyed. 01623_ Acquired 15 matter. 01645_ Acquired Relay Coupler [Duelist]. 01645_ Relay Coupler [Duelist] fries itself. 01649_ Acquired Relay Coupler [Grunt]. 01651_ Acquired Relay Coupler [Hunter]. 01654_ Acquired Relay Coupler [Swarmer]. 01660_ Acquired 10 matter. 01668_ Dropped Aluminum Leg. 01668_ Acquired Aluminum Leg. 01815_ Triggered Gamma Bomb Trap. 01815_ A bubble of electromagnetic force engulfs the area. 01815_ M-14 Sweeper destroyed. 01815_ Storage Shell breached. 01818_ Triggered Tesla Bomb Trap. 01818_ A bubble of electromagnetic force engulfs the area. 01834_ System corrupted: Component data lost. 01851_ Triggered Fusion Bomb Trap. 01851_ An explosion rips through the floor. 01851_ Lgt. Treads destroyed. Map ----- +----------------------------------------------------+ | ????????????????????????????????????????? | | ????????????????????????????????????????? | | ????????????????????????????????????????? | | ????????????????????????????????????????? | | ????????????????????????????????????????? | | ????????????????????????????????????????? | | ????????????????????????????????????????? | | ????????????????????????????????????????? | | ????????????????????????????????????????? | | ????????????????????????????????????????? | | ????????????????????????????????????????? | | ????????????????????????????????????????? | | ????????????????????????????????######### | | ????????????????????????????????# | | ????????????????????????????????# | | ????????????????????????????????# ###### | | ????????????????????????????????# #????? | | ????????????????????????????????# #????? | | ????????????????????????????????# #????? | | ????????###########?????????????# #????? | | ????????" " "&&" #???????#####?# #????? | | ????????" " &&" #???????#%[%#?# #????? | | ???????#"" " #########=**### ###### | | ???????# = ^ =**!%==%* | | ???????# #&& [=%[! [ | | ???????# & * #%@! ########= =### ###### | | ???????#& %#a& #??????#* #?# #????? | | ???????#" =#& #?????#"""%"## #????? | | ???????# #?????######## #????? | | ???????# " ##????????????# #????? | | ???????#" & " #?????????????# #????? | | ????????"&&" " " #?????????????# #????? | | ????????###########?????????????# #????? | | ????????????????????????????????# #????? | | ????????????????????????????????# #????? | | ???????????????????????########## #????? | | ???????????????????????# #????? | | ???????????????????????# #????? | | ???????????????????????# #########????? | | ???????????????????????# #????????????? | | ???????????????????????#####????????????? | | ????????????????????????????????????????? | | ????????????????????????????????????????? | | ????????????????????????????????????????? | | ????????????????????????????????????????? | | ????????????????????????????????????????? | | ????????????????????????????????????????? | | ????????????????????????????????????????? | | ????????????????????????????????????????? | | ????????????????????????????????????????? | +----------------------------------------------------+ Best States ------------- Heat Dissipation 38 Energy Generation 14 Energy Capacity 280 Matter Stores 300 Matter Capacity 300 Sight Range 16 Terrain Scan Density 85 Armor Coverage 150 Power Shielding 33 Evasion (%) 55 Recoil Reduction 2 Item Schematics ----------------- None Robot Schematics ------------------ None Fabricated ------------ Nothing Alien Tech Used ----------------- None Achievements -------------- None Challenges ------------ None Game ------ Seed SkeletonImprinterArmor Manual? 0 Play Time 00:24:21 Cumulative 9.3 hours Start 2023.10.25 @ 13:48:25 End 2023.10.25 @ 14:10:51 Sessions 1 Manual Loads 0 Difficulty Rogue Special Mode None Game No. 15 Rogue 15 Adventurer 0 Explorer 0 Win Type - Total 0 Types 0/0/0/0/0/0/0/0/0 Lore% 6 Gallery% 18 Achievement% 14 Wizard Run 0 Options --------- ASCII 0 Keyboard 1 Movement Numpad Keybinds 0 Fullscreen 1 Font 18/TerminusBold Map View 76x50 Tactical HUD 1 Map Filters NONE Filters NONE Steam 1 RUN: 325e863b-08a3-4d96-b94c-f5563dbd44cf